[Event "Titled Tuesday Blitz June 20 Early 2023"]
[White "Kovacsy, Barnabas"]
[Black "Goltsev, Dmitry"]
[WhiteFideId "769290"]
[BlackFideId "24176710"]
[WhiteElo "2130"]
[BlackElo "2356"]
[Result "0-1"]
[Round "9"]
[TimeControl "180+2"]
[Date "2023.06.20"]
[WhiteClock "0:00:18"]
[BlackClock "0:01:42"]
[Board "77"]

1. e4 {[%clk 0:03:00]}  e6 {[%clk 0:02:59]} 2. d4 {[%clk 0:03:00]}  d5 {[%clk 0:03:00]} 3. Nc3 {[%clk 0:03:00]}  c5 {[%clk 0:02:59]} 4. exd5 {[%clk 0:02:53]}  exd5 {[%clk 0:02:59]} 5. Nf3 {[%clk 0:02:47]}  Nf6 {[%clk 0:02:59]} 6. Bd3 {[%clk 0:02:43]}  Nc6 {[%clk 0:02:58]} 7. O-O {[%clk 0:02:41]}  Be7 {[%clk 0:02:57]} 8. h3 {[%clk 0:02:40]}  O-O {[%clk 0:02:57]} 9. Bf4 {[%clk 0:02:32]}  cxd4 {[%clk 0:02:54]} 10. Ne2 {[%clk 0:02:21]}  Ne4 {[%clk 0:02:50]} 11. Nexd4 {[%clk 0:02:18]}  Bf6 {[%clk 0:02:49]} 12. c3 {[%clk 0:02:16]}  Qb6 {[%clk 0:02:45]} 13. Nxc6 {[%clk 0:02:05]}  bxc6 {[%clk 0:02:46]} 14. Qc2 {[%clk 0:02:04]}  Bf5 {[%clk 0:02:42]} 15. Be5 {[%clk 0:01:59]}  Be7 {[%clk 0:02:34]} 16. Nd4 {[%clk 0:01:50]}  Bg6 {[%clk 0:02:32]} 17. Rab1 {[%clk 0:01:35]}  c5 {[%clk 0:02:29]} 18. Nf3 {[%clk 0:01:20]}  c4 {[%clk 0:02:28]} 19. Bxe4 {[%clk 0:01:12]}  Bxe4 {[%clk 0:02:29]} 20. Qe2 {[%clk 0:01:12]}  Bxb1 {[%clk 0:02:26]} 21. Rxb1 {[%clk 0:01:12]}  Bf6 {[%clk 0:02:25]} 22. Bd4 {[%clk 0:01:11]}  Bxd4 {[%clk 0:02:24]} 23. Nxd4 {[%clk 0:01:11]}  Rfe8 {[%clk 0:02:23]} 24. Qf3 {[%clk 0:01:11]}  Rad8 {[%clk 0:02:16]} 25. b3 {[%clk 0:01:11]}  Qf6 {[%clk 0:02:15]} 26. Qg3 {[%clk 0:01:03]}  Qg6 {[%clk 0:02:13]} 27. Qxg6 {[%clk 0:00:51]}  hxg6 {[%clk 0:02:14]} 28. bxc4 {[%clk 0:00:49]}  dxc4 {[%clk 0:02:15]} 29. Rb7 {[%clk 0:00:49]}  Re1+ {[%clk 0:02:09]} 30. Kh2 {[%clk 0:00:48]}  Rc1 {[%clk 0:02:10]} 31. Rxa7 {[%clk 0:00:42]}  Rxc3 {[%clk 0:02:09]} 32. Nf3 {[%clk 0:00:42]}  f6 {[%clk 0:02:06]} 33. Rc7 {[%clk 0:00:42]}  Rc2 {[%clk 0:02:05]} 34. a4 {[%clk 0:00:38]}  c3 {[%clk 0:01:57]} 35. a5 {[%clk 0:00:38]}  Rxf2 {[%clk 0:01:54]} 36. Rxc3 {[%clk 0:00:37]}  Ra2 {[%clk 0:01:55]} 37. Rc5 {[%clk 0:00:36]}  Ra8 {[%clk 0:01:51]} 38. Nd4 {[%clk 0:00:28]}  R2xa5 {[%clk 0:01:49]} 39. Rc7 {[%clk 0:00:27]}  R5a7 {[%clk 0:01:48]} 40. Rc6 {[%clk 0:00:25]}  Ra2 {[%clk 0:01:47]} 41. Ne6 {[%clk 0:00:23]}  Re8 {[%clk 0:01:46]} 42. Nf4 {[%clk 0:00:22]}  g5 {[%clk 0:01:46]} 43. Nh5 {[%clk 0:00:16]}  Ree2 {[%clk 0:01:45]} 44. Rc7 {[%clk 0:00:17]}  Rxg2+ {[%clk 0:01:44]} 45. Kh1 {[%clk 0:00:17]}  Rge2 {[%clk 0:01:42]} 46. Kg1 {[%clk 0:00:18]}  Re1# {[%clk 0:01:42]} 0-1


[Site "https://www.chess.com"]

[Event "Titled Tuesday Blitz June 20 Early 2023"]
[White "Starozhilov, Leonid"]
[Black "Delorme, Axel"]
[WhiteFideId "14106752"]
[BlackFideId "632023"]
[WhiteElo "2352"]
[BlackElo "2478"]
[Result "1/2-1/2"]
[Round "9"]
[TimeControl "180+2"]
[Date "2023.06.20"]
[WhiteClock "0:00:10"]
[BlackClock "0:00:06"]
[Board "80"]

1. e4 {[%clk 0:02:57]}  c5 {[%clk 0:03:00]} 2. Nf3 {[%clk 0:02:56]}  d6 {[%clk 0:03:00]} 3. Bb5+ {[%clk 0:02:57]}  Bd7 {[%clk 0:02:59]} 4. c4 {[%clk 0:02:57]}  Nf6 {[%clk 0:02:58]} 5. Nc3 {[%clk 0:02:57]}  Nc6 {[%clk 0:02:53]} 6. a3 {[%clk 0:02:55]}  g6 {[%clk 0:02:53]} 7. O-O {[%clk 0:02:53]}  Bg7 {[%clk 0:02:53]} 8. d3 {[%clk 0:02:53]}  O-O {[%clk 0:02:52]} 9. h3 {[%clk 0:02:53]}  a6 {[%clk 0:02:44]} 10. Ba4 {[%clk 0:02:41]}  Ne8 {[%clk 0:02:22]} 11. Rb1 {[%clk 0:02:35]}  Nc7 {[%clk 0:02:19]} 12. Be3 {[%clk 0:02:23]}  Ne6 {[%clk 0:02:17]} 13. Bxc6 {[%clk 0:02:23]}  Bxc6 {[%clk 0:02:01]} 14. d4 {[%clk 0:02:15]}  cxd4 {[%clk 0:02:02]} 15. Nxd4 {[%clk 0:02:14]}  Nxd4 {[%clk 0:02:02]} 16. Bxd4 {[%clk 0:02:15]}  Rc8 {[%clk 0:01:58]} 17. Bxg7 {[%clk 0:02:13]}  Kxg7 {[%clk 0:01:58]} 18. Qd4+ {[%clk 0:02:13]}  Kg8 {[%clk 0:01:58]} 19. b3 {[%clk 0:02:13]}  Qa5 {[%clk 0:01:55]} 20. a4 {[%clk 0:01:46]}  Qc5 {[%clk 0:01:22]} 21. Rfd1 {[%clk 0:01:26]}  Qxd4 {[%clk 0:01:21]} 22. Rxd4 {[%clk 0:01:27]}  a5 {[%clk 0:01:19]} 23. f3 {[%clk 0:01:25]}  b6 {[%clk 0:01:18]} 24. h4 {[%clk 0:01:25]}  Kg7 {[%clk 0:01:15]} 25. Kf2 {[%clk 0:01:25]}  h6 {[%clk 0:01:13]} 26. Ke3 {[%clk 0:01:24]}  g5 {[%clk 0:01:09]} 27. Rh1 {[%clk 0:01:23]}  Rh8 {[%clk 0:01:06]} 28. Ne2 {[%clk 0:01:21]}  Bd7 {[%clk 0:01:01]} 29. e5 {[%clk 0:01:11]}  Rc6 {[%clk 0:00:35]} 30. Ng3 {[%clk 0:01:02]}  f5 {[%clk 0:00:24]} 31. exf6+ {[%clk 0:00:57]}  Kxf6 {[%clk 0:00:21]} 32. hxg5+ {[%clk 0:00:57]}  Kxg5 {[%clk 0:00:21]} 33. Rdh4 {[%clk 0:00:53]}  Kg6 {[%clk 0:00:19]} 34. Nh5 {[%clk 0:00:52]}  e5 {[%clk 0:00:18]} 35. Ng3 {[%clk 0:00:52]}  d5 {[%clk 0:00:17]} 36. cxd5 {[%clk 0:00:48]}  Rc3+ {[%clk 0:00:18]} 37. Kf2 {[%clk 0:00:48]}  Rxb3 {[%clk 0:00:17]} 38. Ne4 {[%clk 0:00:41]}  h5 {[%clk 0:00:09]} 39. Rc1 {[%clk 0:00:33]}  Rc8 {[%clk 0:00:07]} 40. Rxc8 {[%clk 0:00:30]}  Bxc8 {[%clk 0:00:08]} 41. Ng3 {[%clk 0:00:23]}  Rd3 {[%clk 0:00:06]} 42. Rxh5 {[%clk 0:00:20]}  Rxd5 {[%clk 0:00:06]} 43. Rh8 {[%clk 0:00:21]}  Bd7 {[%clk 0:00:05]} 44. Rd8 {[%clk 0:00:19]}  Bc6 {[%clk 0:00:03]} 45. Rb8 {[%clk 0:00:19]}  Bxa4 {[%clk 0:00:03]} 46. Rxb6+ {[%clk 0:00:20]}  Kf7 {[%clk 0:00:03]} 47. Ne4 {[%clk 0:00:20]}  Bc2 {[%clk 0:00:02]} 48. Nd6+ {[%clk 0:00:19]}  Ke6 {[%clk 0:00:02]} 49. Nc4+ {[%clk 0:00:16]}  Kd7 {[%clk 0:00:03]} 50. Ne3 {[%clk 0:00:13]}  Rc5 {[%clk 0:00:04]} 51. Ra6 {[%clk 0:00:09]}  Bb3 {[%clk 0:00:01]} 52. g4 {[%clk 0:00:07]}  a4 {[%clk 0:00:02]} 53. g5 {[%clk 0:00:07]}  e4 {[%clk 0:00:02]} 54. f4 {[%clk 0:00:07]}  Kc7 {[%clk 0:00:01]} 55. Rh6 {[%clk 0:00:04]}  Kb7 {[%clk 0:00:02]} 56. g6 {[%clk 0:00:04]}  a3 {[%clk 0:00:03]} 57. Rh7+ {[%clk 0:00:04]}  Kb6 {[%clk 0:00:03]} 58. Rh1 {[%clk 0:00:04]}  a2 {[%clk 0:00:03]} 59. f5 {[%clk 0:00:05]}  Ra5 {[%clk 0:00:03]} 60. Ra1 {[%clk 0:00:04]}  Kc7 {[%clk 0:00:04]} 61. Kg3 {[%clk 0:00:05]}  Kd7 {[%clk 0:00:04]} 62. Kf4 {[%clk 0:00:06]}  Ke7 {[%clk 0:00:05]} 63. Kxe4 {[%clk 0:00:05]}  Kf6 {[%clk 0:00:05]} 64. Kf4 {[%clk 0:00:03]}  Ra4+ {[%clk 0:00:04]} 65. Kf3 {[%clk 0:00:03]}  Bg8 {[%clk 0:00:02]} 66. Ke2 {[%clk 0:00:02]}  Ke5 {[%clk 0:00:01]} 67. Kd2 {[%clk 0:00:02]}  Kf6 {[%clk 0:00:01]} 68. Kc3 {[%clk 0:00:03]}  Ra3+ {[%clk 0:00:02]} 69. Kd4 {[%clk 0:00:03]}  Rxe3 {[%clk 0:00:02]} 70. Kxe3 {[%clk 0:00:03]}  Kxf5 {[%clk 0:00:03]} 71. Kd2 {[%clk 0:00:04]}  Kxg6 {[%clk 0:00:03]} 72. Kc3 {[%clk 0:00:05]}  Kf6 {[%clk 0:00:04]} 73. Kb2 {[%clk 0:00:05]}  Be6 {[%clk 0:00:04]} 74. Re1 {[%clk 0:00:06]}  Ke7 {[%clk 0:00:05]} 75. Ka1 {[%clk 0:00:07]}  Kf7 {[%clk 0:00:05]} 76. Rf1+ {[%clk 0:00:07]}  Ke7 {[%clk 0:00:06]} 77. Rg1 {[%clk 0:00:08]}  Kf7 {[%clk 0:00:06]} 78. Kb2 {[%clk 0:00:08]}  Ke7 {[%clk 0:00:07]} 79. Ra1 {[%clk 0:00:09]}  Kf7 {[%clk 0:00:07]} 80. Rxa2 {[%clk 0:00:10]}  Bxa2 {[%clk 0:00:06]} 1/2-1/2


[Site "https://www.chess.com"]

[Event "Titled Tuesday Blitz June 20 Early 2023"]
[White "Zavgorodniy, Sergiy"]
[Black "Andreev, Konstantin"]
[WhiteFideId "14110148"]
[BlackFideId "24239305"]
[WhiteElo "2402"]
[BlackElo "2106"]
[Result "0-1"]
[Round "9"]
[TimeControl "180+2"]
[Date "2023.06.20"]
[WhiteClock "0:01:26"]
[BlackClock "0:01:13"]
[Board "83"]

1. d4 {[%clk 0:03:00]}  Nf6 {[%clk 0:02:55]} 2. c4 {[%clk 0:03:01]}  e6 {[%clk 0:02:55]} 3. Nf3 {[%clk 0:03:00]}  d5 {[%clk 0:02:56]} 4. e3 {[%clk 0:03:01]}  Be7 {[%clk 0:02:55]} 5. Nbd2 {[%clk 0:03:00]}  O-O {[%clk 0:02:55]} 6. Bd3 {[%clk 0:03:00]}  a6 {[%clk 0:02:51]} 7. O-O {[%clk 0:03:00]}  dxc4 {[%clk 0:02:48]} 8. Nxc4 {[%clk 0:03:00]}  b5 {[%clk 0:02:49]} 9. Nce5 {[%clk 0:03:00]}  Bb7 {[%clk 0:02:48]} 10. a4 {[%clk 0:03:00]}  b4 {[%clk 0:02:48]} 11. b3 {[%clk 0:03:00]}  c5 {[%clk 0:02:49]} 12. Bb2 {[%clk 0:03:00]}  Nbd7 {[%clk 0:02:48]} 13. Rc1 {[%clk 0:02:59]}  Rc8 {[%clk 0:02:46]} 14. Qe2 {[%clk 0:02:58]}  Qb6 {[%clk 0:02:42]} 15. Ng5 {[%clk 0:02:57]}  h6 {[%clk 0:02:36]} 16. Nxd7 {[%clk 0:02:24]}  Nxd7 {[%clk 0:02:34]} 17. Ne4 {[%clk 0:02:24]}  f5 {[%clk 0:02:00]} 18. Nxc5 {[%clk 0:02:17]}  Nxc5 {[%clk 0:01:59]} 19. dxc5 {[%clk 0:02:18]}  Bxc5 {[%clk 0:01:58]} 20. Bc4 {[%clk 0:02:18]}  Rfd8 {[%clk 0:01:53]} 21. Rcd1 {[%clk 0:02:12]}  Qc6 {[%clk 0:01:51]} 22. f3 {[%clk 0:02:12]}  Qb6 {[%clk 0:01:51]} 23. Bd4 {[%clk 0:01:59]}  Bxd4 {[%clk 0:01:39]} 24. exd4 {[%clk 0:02:00]}  Bd5 {[%clk 0:01:34]} 25. Bxa6 {[%clk 0:01:57]}  Rc3 {[%clk 0:01:31]} 26. Bc4 {[%clk 0:01:53]}  Kf7 {[%clk 0:01:27]} 27. Kh1 {[%clk 0:01:33]}  Bxc4 {[%clk 0:01:25]} 28. bxc4 {[%clk 0:01:34]}  Rxd4 {[%clk 0:01:25]} 29. Rxd4 {[%clk 0:01:33]}  Qxd4 {[%clk 0:01:26]} 30. Re1 {[%clk 0:01:31]}  Qxc4 {[%clk 0:01:23]} 31. Qe5 {[%clk 0:01:29]}  Rc1 {[%clk 0:01:15]} 32. h4 {[%clk 0:01:26]}  Qxh4+ {[%clk 0:01:13]} 0-1


[Site "https://www.chess.com"]

[Event "Titled Tuesday Blitz June 20 Early 2023"]
[White "Mendez Fortes, Eduardo Jesus"]
[Black "Heinemann, Josefine"]
[WhiteFideId "3502376"]
[BlackFideId "12900460"]
[WhiteElo "2307"]
[BlackElo "2342"]
[Result "0-1"]
[Round "9"]
[TimeControl "180+2"]
[Date "2023.06.20"]
[WhiteClock "0:00:00"]
[BlackClock "0:01:16"]
[Board "85"]

1. e4 {[%clk 0:02:58]}  c6 {[%clk 0:02:58]} 2. d4 {[%clk 0:02:58]}  d5 {[%clk 0:02:58]} 3. e5 {[%clk 0:02:58]}  c5 {[%clk 0:02:58]} 4. dxc5 {[%clk 0:02:58]}  Nc6 {[%clk 0:02:58]} 5. Nf3 {[%clk 0:02:58]}  e6 {[%clk 0:02:55]} 6. a3 {[%clk 0:02:53]}  Bxc5 {[%clk 0:02:54]} 7. b4 {[%clk 0:02:53]}  Bb6 {[%clk 0:02:52]} 8. Bb2 {[%clk 0:02:54]}  Nge7 {[%clk 0:02:52]} 9. Bd3 {[%clk 0:02:50]}  Ng6 {[%clk 0:02:51]} 10. b5 {[%clk 0:02:49]}  Nce7 {[%clk 0:02:50]} 11. Nbd2 {[%clk 0:02:45]}  Nf4 {[%clk 0:02:50]} 12. Bf1 {[%clk 0:02:45]}  O-O {[%clk 0:02:45]} 13. g3 {[%clk 0:02:45]}  Nfg6 {[%clk 0:02:45]} 14. h4 {[%clk 0:02:44]}  f6 {[%clk 0:02:44]} 15. Bd3 {[%clk 0:02:00]}  Nxe5 {[%clk 0:02:43]} 16. Bxe5 {[%clk 0:01:46]}  fxe5 {[%clk 0:02:43]} 17. Bxh7+ {[%clk 0:01:46]}  Kxh7 {[%clk 0:02:25]} 18. Ng5+ {[%clk 0:01:46]}  Kg6 {[%clk 0:02:25]} 19. Qg4 {[%clk 0:01:44]}  Bxf2+ {[%clk 0:02:13]} 20. Kd1 {[%clk 0:01:44]}  Nf5 {[%clk 0:02:08]} 21. Kc1 {[%clk 0:00:52]}  Kh6 {[%clk 0:02:03]} 22. h5 {[%clk 0:00:47]}  Qe8 {[%clk 0:01:29]} 23. Ngf3 {[%clk 0:00:30]}  Be3 {[%clk 0:01:24]} 24. Nxe5 {[%clk 0:00:20]}  Rf6 {[%clk 0:01:23]} 25. Kd1 {[%clk 0:00:15]}  Bg5 {[%clk 0:01:17]} 26. Ndf3 {[%clk 0:00:00]}  Ne3+ {[%clk 0:01:16]} 0-1


[Site "https://www.chess.com"]

[Event "Titled Tuesday Blitz June 20 Early 2023"]
[White "i_like_explosions"]
[Black "Adla, Diego"]
[BlackFideId "100072"]
[WhiteElo "2414"]
[BlackElo "2377"]
[Result "0-1"]
[Round "9"]
[TimeControl "180+2"]
[Date "2023.06.20"]
[WhiteClock "0:00:01"]
[BlackClock "0:01:28"]
[Board "90"]

1. d4 {[%clk 0:03:00]}  Nf6 {[%clk 0:02:57]} 2. Bg5 {[%clk 0:02:59]}  g6 {[%clk 0:02:55]} 3. Bxf6 {[%clk 0:02:59]}  exf6 {[%clk 0:02:56]} 4. g3 {[%clk 0:02:58]}  Bg7 {[%clk 0:02:56]} 5. Bg2 {[%clk 0:02:59]}  O-O {[%clk 0:02:57]} 6. e3 {[%clk 0:03:00]}  c5 {[%clk 0:02:57]} 7. Ne2 {[%clk 0:03:00]}  Nc6 {[%clk 0:02:57]} 8. O-O {[%clk 0:02:59]}  cxd4 {[%clk 0:02:58]} 9. exd4 {[%clk 0:02:59]}  f5 {[%clk 0:02:55]} 10. c3 {[%clk 0:02:59]}  Qb6 {[%clk 0:02:55]} 11. Qb3 {[%clk 0:02:58]}  d6 {[%clk 0:02:49]} 12. Nd2 {[%clk 0:02:57]}  Re8 {[%clk 0:02:46]} 13. Nf4 {[%clk 0:02:56]}  Bh6 {[%clk 0:02:45]} 14. Qxb6 {[%clk 0:02:47]}  axb6 {[%clk 0:02:45]} 15. Nc4 {[%clk 0:02:47]}  Bxf4 {[%clk 0:02:41]} 16. gxf4 {[%clk 0:02:46]}  Rd8 {[%clk 0:02:38]} 17. Nxb6 {[%clk 0:02:46]}  Ra6 {[%clk 0:02:38]} 18. Nxc8 {[%clk 0:02:46]}  Rxc8 {[%clk 0:02:38]} 19. a3 {[%clk 0:02:45]}  Rb6 {[%clk 0:02:37]} 20. b4 {[%clk 0:02:35]}  Nd8 {[%clk 0:02:37]} 21. Rfc1 {[%clk 0:02:21]}  Ne6 {[%clk 0:02:37]} 22. Bf1 {[%clk 0:02:19]}  Nxf4 {[%clk 0:02:36]} 23. c4 {[%clk 0:02:20]}  Ne6 {[%clk 0:02:23]} 24. c5 {[%clk 0:02:18]}  dxc5 {[%clk 0:02:20]} 25. dxc5 {[%clk 0:02:19]}  Rbc6 {[%clk 0:02:20]} 26. Bg2 {[%clk 0:02:14]}  R6c7 {[%clk 0:02:20]} 27. a4 {[%clk 0:02:14]}  Nd4 {[%clk 0:02:20]} 28. Rc4 {[%clk 0:02:07]}  Nc6 {[%clk 0:02:15]} 29. Rac1 {[%clk 0:02:01]}  Ne5 {[%clk 0:02:14]} 30. Rd4 {[%clk 0:01:58]}  f4 {[%clk 0:02:14]} 31. a5 {[%clk 0:01:52]}  f3 {[%clk 0:02:13]} 32. Bf1 {[%clk 0:01:52]}  Nc6 {[%clk 0:02:06]} 33. Rd6 {[%clk 0:01:48]}  Nxb4 {[%clk 0:02:05]} 34. Rb6 {[%clk 0:01:45]}  Nc6 {[%clk 0:02:02]} 35. a6 {[%clk 0:01:35]}  bxa6 {[%clk 0:02:00]} 36. Bxa6 {[%clk 0:01:35]}  Rd8 {[%clk 0:02:00]} 37. Bb7 {[%clk 0:01:30]}  Nd4 {[%clk 0:02:00]} 38. Kf1 {[%clk 0:01:10]}  Ne2 {[%clk 0:02:00]} 39. Re1 {[%clk 0:01:00]}  Rxc5 {[%clk 0:01:55]} 40. Bxf3 {[%clk 0:00:59]}  Nf4 {[%clk 0:01:53]} 41. Rb4 {[%clk 0:00:57]}  g5 {[%clk 0:01:53]} 42. h4 {[%clk 0:00:56]}  h6 {[%clk 0:01:52]} 43. hxg5 {[%clk 0:00:56]}  hxg5 {[%clk 0:01:53]} 44. Rbe4 {[%clk 0:00:55]}  Rd2 {[%clk 0:01:51]} 45. Rd1 {[%clk 0:00:50]}  Rb2 {[%clk 0:01:47]} 46. Re8+ {[%clk 0:00:39]}  Kg7 {[%clk 0:01:47]} 47. Be4 {[%clk 0:00:35]}  Ra5 {[%clk 0:01:40]} 48. Rb1 {[%clk 0:00:19]}  Rd2 {[%clk 0:01:31]} 49. f3 {[%clk 0:00:06]}  Raa2 {[%clk 0:01:31]} 50. Rc8 {[%clk 0:00:03]}  Rf2+ {[%clk 0:01:30]} 51. Kg1 {[%clk 0:00:01]}  Nh3+ {[%clk 0:01:28]} 0-1


[Site "https://www.chess.com"]

[Event "Titled Tuesday Blitz June 20 Early 2023"]
[White "Belov, Alexei"]
[Black "Nikologorsky, Matfei"]
[WhiteFideId "4128206"]
[BlackFideId "24102474"]
[WhiteElo "2564"]
[BlackElo "2153"]
[Result "0-1"]
[Round "9"]
[TimeControl "180+2"]
[Date "2023.06.20"]
[WhiteClock "0:00:15"]
[BlackClock "0:00:51"]
[Board "93"]

1. e4 {[%clk 0:03:00]}  c5 {[%clk 0:02:58]} 2. Nf3 {[%clk 0:03:00]}  e6 {[%clk 0:02:58]} 3. d4 {[%clk 0:02:59]}  cxd4 {[%clk 0:02:59]} 4. Nxd4 {[%clk 0:02:59]}  a6 {[%clk 0:03:00]} 5. Nc3 {[%clk 0:02:59]}  Qc7 {[%clk 0:03:00]} 6. Be2 {[%clk 0:02:59]}  b5 {[%clk 0:02:59]} 7. O-O {[%clk 0:02:59]}  Bb7 {[%clk 0:02:59]} 8. Bf3 {[%clk 0:02:59]}  Nc6 {[%clk 0:02:56]} 9. Nxc6 {[%clk 0:02:57]}  dxc6 {[%clk 0:02:56]} 10. Qe2 {[%clk 0:02:51]}  Bd6 {[%clk 0:02:48]} 11. h3 {[%clk 0:02:50]}  Nf6 {[%clk 0:02:48]} 12. Rd1 {[%clk 0:02:41]}  Be5 {[%clk 0:02:47]} 13. Be3 {[%clk 0:02:28]}  c5 {[%clk 0:02:45]} 14. Bg5 {[%clk 0:01:51]}  O-O {[%clk 0:02:44]} 15. Qe1 {[%clk 0:01:41]}  Rfd8 {[%clk 0:02:28]} 16. Rab1 {[%clk 0:01:38]}  h6 {[%clk 0:02:27]} 17. Bh4 {[%clk 0:01:35]}  g5 {[%clk 0:02:13]} 18. Bg3 {[%clk 0:01:34]}  Bxg3 {[%clk 0:02:13]} 19. fxg3 {[%clk 0:01:35]}  Qe5 {[%clk 0:02:14]} 20. a3 {[%clk 0:01:23]}  Rd4 {[%clk 0:01:58]} 21. Ne2 {[%clk 0:01:11]}  Rxd1 {[%clk 0:01:48]} 22. Rxd1 {[%clk 0:01:10]}  Nxe4 {[%clk 0:01:35]} 23. Nc3 {[%clk 0:01:04]}  f5 {[%clk 0:01:35]} 24. Bxe4 {[%clk 0:00:43]}  fxe4 {[%clk 0:01:33]} 25. Qe3 {[%clk 0:00:43]}  Rf8 {[%clk 0:01:23]} 26. h4 {[%clk 0:00:38]}  b4 {[%clk 0:01:18]} 27. Na4 {[%clk 0:00:30]}  bxa3 {[%clk 0:01:15]} 28. bxa3 {[%clk 0:00:28]}  c4 {[%clk 0:01:13]} 29. Nc5 {[%clk 0:00:27]}  Bd5 {[%clk 0:01:13]} 30. Nd7 {[%clk 0:00:27]}  Qg7 {[%clk 0:00:57]} 31. Nxf8 {[%clk 0:00:26]}  Kxf8 {[%clk 0:00:57]} 32. Rf1+ {[%clk 0:00:27]}  Kg8 {[%clk 0:00:57]} 33. Qc5 {[%clk 0:00:25]}  gxh4 {[%clk 0:00:53]} 34. Qc8+ {[%clk 0:00:23]}  Kh7 {[%clk 0:00:52]} 35. Qe8 {[%clk 0:00:19]}  e5 {[%clk 0:00:52]} 36. Qd7 {[%clk 0:00:15]}  Qxd7 {[%clk 0:00:51]} 0-1


[Site "https://www.chess.com"]

[Event "Titled Tuesday Blitz June 20 Early 2023"]
[White "Berezin, Viktor"]
[Black "Skaric, Djuro"]
[WhiteFideId "14107872"]
[BlackFideId "934569"]
[WhiteElo "2310"]
[BlackElo "2282"]
[Result "1-0"]
[Round "9"]
[TimeControl "180+2"]
[Date "2023.06.20"]
[WhiteClock "0:00:17"]
[BlackClock "0:00:48"]
[Board "96"]

1. d4 {[%clk 0:02:55]}  d6 {[%clk 0:03:00]} 2. a4 {[%clk 0:02:53]}  g6 {[%clk 0:02:59]} 3. Nf3 {[%clk 0:02:53]}  Bg7 {[%clk 0:03:00]} 4. g3 {[%clk 0:02:54]}  Nf6 {[%clk 0:03:00]} 5. Bg2 {[%clk 0:02:54]}  O-O {[%clk 0:03:01]} 6. O-O {[%clk 0:02:55]}  h6 {[%clk 0:02:59]} 7. Nc3 {[%clk 0:02:53]}  Nc6 {[%clk 0:02:57]} 8. a5 {[%clk 0:02:52]}  a6 {[%clk 0:02:55]} 9. e4 {[%clk 0:02:50]}  e5 {[%clk 0:02:55]} 10. dxe5 {[%clk 0:02:45]}  dxe5 {[%clk 0:02:54]} 11. h3 {[%clk 0:02:45]}  Be6 {[%clk 0:02:54]} 12. Be3 {[%clk 0:02:43]}  Nd7 {[%clk 0:02:53]} 13. Nd5 {[%clk 0:02:38]}  f5 {[%clk 0:02:50]} 14. Nh4 {[%clk 0:02:30]}  Kh7 {[%clk 0:02:47]} 15. f4 {[%clk 0:02:26]}  exf4 {[%clk 0:02:39]} 16. Nxf4 {[%clk 0:02:05]}  Bf7 {[%clk 0:02:31]} 17. exf5 {[%clk 0:01:27]}  g5 {[%clk 0:02:29]} 18. Ne6 {[%clk 0:01:26]}  Bxe6 {[%clk 0:02:12]} 19. fxe6 {[%clk 0:01:26]}  Rxf1+ {[%clk 0:02:03]} 20. Qxf1 {[%clk 0:01:18]}  gxh4 {[%clk 0:01:50]} 21. Qf5+ {[%clk 0:00:46]}  Kh8 {[%clk 0:01:45]} 22. exd7 {[%clk 0:00:42]}  Qf6 {[%clk 0:01:42]} 23. Qxf6 {[%clk 0:00:22]}  Bxf6 {[%clk 0:01:42]} 24. Bxc6 {[%clk 0:00:20]}  bxc6 {[%clk 0:01:42]} 25. c3 {[%clk 0:00:19]}  Rd8 {[%clk 0:01:40]} 26. Rd1 {[%clk 0:00:19]}  Kg7 {[%clk 0:01:37]} 27. Bf4 {[%clk 0:00:19]}  Kf7 {[%clk 0:01:21]} 28. Bxc7 {[%clk 0:00:18]}  Ke6 {[%clk 0:01:19]} 29. Bxd8 {[%clk 0:00:18]}  Bxd8 {[%clk 0:01:18]} 30. gxh4 {[%clk 0:00:18]}  Ke7 {[%clk 0:01:17]} 31. Kg2 {[%clk 0:00:18]}  Bxa5 {[%clk 0:01:17]} 32. Kf3 {[%clk 0:00:17]}  Bd8 {[%clk 0:01:16]} 33. Kg4 {[%clk 0:00:17]}  Kf7 {[%clk 0:00:48]} 34. Kh5 {[%clk 0:00:17]} 1-0


[Site "https://www.chess.com"]

[Event "Titled Tuesday Blitz June 20 Early 2023"]
[White "Shuvalov, Evgenij"]
[Black "Jiganchine, Roman"]
[WhiteFideId "4187237"]
[BlackFideId "2603667"]
[WhiteElo "2080"]
[BlackElo "2340"]
[Result "1-0"]
[Round "9"]
[TimeControl "180+2"]
[Date "2023.06.20"]
[WhiteClock "0:00:59"]
[BlackClock "0:00:00"]
[Board "98"]

1. d4 {[%clk 0:03:00]}  d5 {[%clk 0:02:59]} 2. c4 {[%clk 0:03:01]}  e6 {[%clk 0:02:59]} 3. Nc3 {[%clk 0:03:01]}  Nf6 {[%clk 0:02:58]} 4. cxd5 {[%clk 0:03:01]}  exd5 {[%clk 0:02:54]} 5. Bg5 {[%clk 0:03:00]}  c6 {[%clk 0:02:52]} 6. e3 {[%clk 0:03:00]}  Bf5 {[%clk 0:02:52]} 7. Qf3 {[%clk 0:02:58]}  Be6 {[%clk 0:02:52]} 8. Bxf6 {[%clk 0:02:57]}  Qxf6 {[%clk 0:02:53]} 9. Qxf6 {[%clk 0:02:57]}  gxf6 {[%clk 0:02:54]} 10. Bd3 {[%clk 0:02:56]}  a5 {[%clk 0:02:53]} 11. Nf3 {[%clk 0:02:54]}  a4 {[%clk 0:02:52]} 12. a3 {[%clk 0:02:51]}  Nd7 {[%clk 0:02:49]} 13. Nh4 {[%clk 0:02:50]}  b5 {[%clk 0:02:46]} 14. Ne2 {[%clk 0:02:46]}  Nb6 {[%clk 0:02:44]} 15. Nf5 {[%clk 0:02:23]}  Nc4 {[%clk 0:02:42]} 16. Bxc4 {[%clk 0:02:17]}  bxc4 {[%clk 0:02:25]} 17. Neg3 {[%clk 0:02:14]}  Rb8 {[%clk 0:01:49]} 18. O-O-O {[%clk 0:02:13]}  c3 {[%clk 0:01:48]} 19. bxc3 {[%clk 0:02:10]}  Bxa3+ {[%clk 0:01:47]} 20. Kc2 {[%clk 0:02:10]}  Rb2+ {[%clk 0:01:46]} 21. Kd3 {[%clk 0:02:10]}  Rxf2 {[%clk 0:01:41]} 22. Rhf1 {[%clk 0:02:10]}  Rxg2 {[%clk 0:01:36]} 23. Ra1 {[%clk 0:02:07]}  Bb2 {[%clk 0:01:31]} 24. Rxa4 {[%clk 0:02:06]}  O-O {[%clk 0:01:24]} 25. Nh5 {[%clk 0:01:55]}  Kh8 {[%clk 0:01:07]} 26. h4 {[%clk 0:01:26]}  Bc1 {[%clk 0:01:00]} 27. c4 {[%clk 0:01:17]}  dxc4+ {[%clk 0:00:54]} 28. Rxc4 {[%clk 0:01:13]}  Rd2+ {[%clk 0:00:24]} 29. Kc3 {[%clk 0:01:10]}  Bxc4 {[%clk 0:00:17]} 30. Kxc4 {[%clk 0:01:11]}  Rc2+ {[%clk 0:00:17]} 31. Kd3 {[%clk 0:01:11]}  Rd2+ {[%clk 0:00:17]} 32. Kc3 {[%clk 0:01:10]}  Rg2 {[%clk 0:00:06]} 33. Rxc1 {[%clk 0:01:09]}  Rg4 {[%clk 0:00:04]} 34. Kd3 {[%clk 0:01:06]}  Re8 {[%clk 0:00:04]} 35. Rxc6 {[%clk 0:01:04]}  Rf8 {[%clk 0:00:00]} 36. Nxf6 {[%clk 0:00:59]} 1-0


[Site "https://www.chess.com"]